fUST/lending_fUST_20250930
["ID","MTS","AMOUNT","RATE_DAILY","PERIOD"]
[388463616,1759179056910,-154.014455,0.00023073,7]
[388463617,1759179056919,-151.0,0.00023073,7]
[388463618,1759179056929,-151.0,0.00023073,7]
[388463619,1759179056940,-151.0,0.00023073,7]
[388463620,1759179056951,-151.0,0.00023073,7]
[388463621,1759179056960,-151.0,0.00023073,7]
[388463622,1759179056969,-151.0,0.00023073,7]
[388463623,1759179056979,-151.0,0.00023073,7]
[388463624,1759179056989,-151.0,0.00023073,7]
[388463625,1759179056999,-151.0,0.00023073,7]
[388463626,1759179057008,-151.0,0.00023073,7]
[388463627,1759179057017,-151.0,0.00023073,7]
[388463628,1759179057027,-151.0,0.00023073,7]
[388463629,1759179057037,-375.346038,0.00023073,7]
[388463630,1759179057047,-375.346038,0.00023073,7]
[388463631,1759179057057,-375.346038,0.00023073,7]
[388463632,1759179057067,-375.346038,0.00023073,7]
[388463633,1759179057076,-189.40172226,0.00023073,7]
[388463634,1759179057086,-1000.0,0.00023121,2]
[388463635,1759179057095,-1000.0,0.00023121,2]
[388463636,1759179057104,-500.0,0.00023121,2]
[388463637,1759179057113,-724.75353776,0.00023168,2]
[388463638,1759179057122,-500.0,0.00023196,2]
[388463639,1759179057132,-3869.8288211,0.00023203,2]
[388463640,1759179057142,-586.7981431,0.00023205,2]
[388463641,1759179057151,-586.7981431,0.00023205,2]
[388463642,1759179057161,-480.0,0.00023235,2]
[388463643,1759179057170,-480.0,0.00023235,2]
[388463644,1759179057179,-2800.29,0.00023235,2]
[388463645,1759179057188,-480.0,0.00023235,2]
[388463646,1759179057200,-1030.87,0.00023235,2]
[388463647,1759179057210,-348.82471088,0.00023235,2]
[388463648,1759179057219,-480.0,0.00023235,2]
[388463649,1759179057229,-480.0,0.00023242,2]
[388463650,1759179057238,-480.0,0.00023242,2]
[388463651,1759179057247,-480.0,0.00023242,2]
[388463652,1759179057256,-480.0,0.00023242,2]
[388463653,1759179057265,-480.0,0.00023242,2]
[388463654,1759179057275,-693.21,0.00023242,2]
[388463655,1759179057284,-1516.11,0.00023242,2]
[388463656,1759179057294,-2810.05,0.00023242,2]
[388463657,1759179057304,-688.92,0.00023242,2]
[388463658,1759179057315,-480.0,0.00023242,2]
[388463659,1759179057327,-480.0,0.00023242,2]
[388463660,1759179057337,-480.0,0.00023242,2]
[388463661,1759179057346,-151.0,0.00023242,7]
[388463662,1759179057355,-500.0,0.00023243,2]
[388463663,1759179057364,-1716.0,0.00023243,2]
[388463664,1759179057374,-480.0,0.00023243,2]
[388463665,1759179057384,-480.0,0.00023243,2]
[388463666,1759179057393,-639.31,0.00023243,2]
[388463667,1759179057403,-480.0,0.00023243,2]
[388463668,1759179057414,-480.0,0.00023243,2]
[388463669,1759179057424,-480.0,0.00023243,2]
[388463670,1759179057433,-480.0,0.00023243,2]
[388463671,1759179057443,-480.0,0.00023243,2]
[388463672,1759179057455,-480.0,0.00023243,2]
[388463673,1759179057464,-802.35,0.00023243,2]
[388463674,1759179057474,-480.0,0.00023243,2]
[388463675,1759179057483,-480.0,0.00023243,2]
[388463676,1759179057493,-480.0,0.00023243,2]
[388463677,1759179057508,-1439.11,0.00023243,2]
[388463678,1759179057518,-480.0,0.00023243,2]
[388463679,1759179057528,-480.0,0.00023243,2]
[388463680,1759179057538,-1825.32,0.00023243,2]
[388463681,1759179057547,-480.0,0.00023243,2]
[388463682,1759179057556,-480.0,0.00023243,2]
[388463683,1759179057566,-480.0,0.00023243,2]
[388463684,1759179057575,-480.0,0.00023243,2]
[388463685,1759179057585,-586.64,0.00023243,2]
[388463686,1759179057594,-480.0,0.00023243,2]
[388463687,1759179057604,-666.57,0.00023243,2]
[388463688,1759179057613,-480.0,0.00023243,2]
[388463689,1759179057623,-480.0,0.00023243,2]
[388463690,1759179057632,-480.0,0.00023243,2]
[388463691,1759179057641,-480.0,0.00023243,2]
[388463692,1759179057650,-623.78,0.00023243,2]
[388463693,1759179057659,-480.0,0.00023243,2]
[388463694,1759179057668,-489.72,0.00023243,2]
[388463695,1759179057677,-852.47,0.00023243,2]
[388463696,1759179057686,-480.0,0.00023243,2]
[388463697,1759179057695,-480.0,0.00023243,2]
[388463698,1759179057705,-480.0,0.00023243,2]
[388463699,1759179057714,-1341.68,0.00023243,2]
[388463700,1759179057724,-480.0,0.00023243,2]
[388463701,1759179057733,-480.0,0.00023243,2]
[388463702,1759179057744,-1727.56,0.00023243,2]
[388463703,1759179057753,-480.0,0.00023243,2]
[388463704,1759179057762,-480.0,0.00023243,2]
[388463705,1759179057771,-480.0,0.00023243,2]
[388463706,1759179057781,-480.0,0.00023243,2]
[388463707,1759179057791,-504.51,0.00023243,2]
[388463708,1759179057800,-480.0,0.00023243,2]
[388463709,1759179057809,-480.0,0.00023243,2]
[388463710,1759179057819,-521.95,0.00023243,2]
[388463711,1759179057828,-480.0,0.00023243,2]
[388463712,1759179057838,-1149.13,0.00023243,2]
[388463713,1759179057847,-480.0,0.00023243,2]
[388463714,1759179057856,-480.0,0.00023243,2]
[388463715,1759179057866,-480.0,0.00023243,2]
[388463716,1759179057875,-1006.13,0.00023243,2]
[388463717,1759179057885,-480.0,0.00023243,2]
[388463718,1759179057895,-480.0,0.00023243,2]
[388463719,1759179057904,-480.0,0.00023243,2]
[388463720,1759179057915,-1755.91,0.00023243,2]
[388463721,1759179057927,-7286.17,0.00023243,2]
[388463722,1759179057939,-480.0,0.00023243,2]
[388463723,1759179057948,-1633.6,0.00023243,2]
[388463724,1759179057959,-1811.478022,0.00023243,7]
[388463725,1759179057968,-1811.478022,0.00023243,7]
[388463726,1759179057978,-480.0,0.00023243,2]
[388463727,1759179057988,-1811.478022,0.00023243,7]
[388463728,1759179057998,-1811.478022,0.00023243,7]
[388463729,1759179058007,-480.0,0.00023243,2]
[388463730,1759179058016,-10000.0,0.00023243,7]
[388463731,1759179058025,-10000.0,0.00023243,7]
[388463732,1759179058035,-10000.0,0.00023243,7]
[388463733,1759179058045,-10000.0,0.00023243,7]
[388463734,1759179058054,-10000.0,0.00023243,7]
[388463735,1759179058064,-2374.18,0.00023243,2]
[388463736,1759179058073,-199.780283,0.00023243,7]
[388463737,1759179058082,-151.0,0.00023243,7]
[388463738,1759179058092,-199.780283,0.00023243,7]
[388463739,1759179058102,-199.780283,0.00023243,7]
[388463740,1759179058112,-480.83,0.00023243,2]
[388463741,1759179058122,-199.780283,0.00023243,7]
[388463742,1759179058132,-151.0,0.00023243,7]
[388463743,1759179058143,-480.0,0.00023243,2]
[388463744,1759179058152,-480.0,0.00023243,2]
[388463745,1759179058162,-151.0,0.00023243,7]
[388463746,1759179058171,-159.610699,0.00023243,7]
[388463747,1759179058180,-480.0,0.00023243,2]
[388463748,1759179058190,-295.488946,0.00023243,7]
[388463749,1759179058200,-480.0,0.00023243,2]
[388463750,1759179058210,-151.0,0.00023243,7]
[388463751,1759179058220,-295.488946,0.00023243,7]
[388463752,1759179058230,-295.488946,0.00023243,7]
[388463753,1759179058240,-295.488946,0.00023243,7]
[388463754,1759179058249,-500.0,0.00023244,2]
[388463755,1759179058258,-500.0,0.00023244,2]
[388463756,1759179058267,-500.0,0.00023244,2]
[388463757,1759179058276,-500.0,0.00023244,2]
[388463758,1759179058286,-500.0,0.00023245,2]
[388463759,1759179058295,-175.63809994,0.00023245,2]
[388463760,1759179058304,-500.0,0.00023245,2]
[388463761,1759179058313,-514.04266913,0.00023287,2]
[388463762,1759179058323,-1000.0,0.00023287,5]
[388463763,1759179058332,-151.0,0.00023288,7]
[388463764,1759179058341,-1000.0,0.00023321,2]
[388463765,1759179058351,-1000.0,0.00023321,2]
[388463766,1759179058360,-1000.0,0.00023321,2]
[388463767,1759179058370,-1000.0,0.00023321,2]
[388463768,1759179058379,-1000.0,0.00023321,2]
[388463769,1759179058388,-1099.23365487,0.00023321,2]
[388463770,1759179058398,-677.04628045,0.00023321,2]
[388463771,1759179058408,-1000.0,0.00023321,2]
[388463772,1759179058418,-1000.0,0.00023321,2]
[388463773,1759179058427,-1000.0,0.00023321,2]
[388463774,1759179058437,-536.33977692,0.00023321,2]
[388463775,1759179058447,-151.0,0.00023332,2]
[388463776,1759179058458,-13044.72066522,0.00023333,2]
[388463777,1759179058468,-480.0,0.00023345,2]
[388463778,1759179058478,-480.0,0.00023345,2]
[388463779,1759179058487,-508.96,0.00023345,2]
[388463780,1759179058497,-480.0,0.00023345,2]
[388463781,1759179058509,-480.0,0.00023345,2]
[388463782,1759179058519,-480.0,0.00023345,2]
[388463783,1759179058528,-480.0,0.00023345,2]
[388463784,1759179058538,-480.0,0.00023345,2]
[388463785,1759179058549,-480.0,0.00023345,2]
[388463786,1759179058558,-518.99,0.00023345,2]
[388463787,1759179058568,-480.0,0.00023345,2]
[388463788,1759179058580,-558.16,0.00023345,2]
[388463789,1759179058590,-638.41,0.00023345,2]
[388463790,1759179058599,-480.0,0.00023345,2]
[388463791,1759179058609,-480.0,0.00023345,2]
[388463792,1759179058618,-480.0,0.00023345,2]
[388463793,1759179058627,-480.0,0.00023345,2]
[388463794,1759179058637,-480.0,0.00023345,2]
[388463795,1759179058646,-480.0,0.00023345,2]
[388463796,1759179058656,-922.82,0.00023345,2]
[388463797,1759179058665,-480.0,0.00023345,2]
[388463798,1759179058674,-480.0,0.00023345,2]
[388463799,1759179058684,-480.0,0.00023345,2]
[388463800,1759179058694,-480.0,0.00023345,2]
[388463801,1759179058704,-480.0,0.00023345,2]
[388463802,1759179058714,-480.0,0.00023345,2]
[388463803,1759179058723,-200.04910001,0.00023345,2]
[388463804,1759179058732,-480.0,0.00023345,2]
[388463805,1759179058742,-480.0,0.00023345,2]
[388463806,1759179058751,-480.0,0.00023345,2]
[388463807,1759179058760,-480.0,0.00023345,2]
[388463808,1759179058770,-480.0,0.00023345,2]
[388463809,1759179058780,-480.0,0.00023345,2]
[388463810,1759179058790,-510.91,0.00023345,2]
[388463811,1759179058799,-480.0,0.00023345,2]
[388463812,1759179058808,-500.0,0.00023345,2]
[388463813,1759179058818,-580.09,0.00023345,2]
[388463814,1759179058827,-326.61808389,0.00023345,2]
[388463815,1759179058837,-480.0,0.00023345,2]
[388463816,1759179058847,-480.0,0.00023345,2]
[388463817,1759179058856,-480.0,0.00023345,2]
[388463818,1759179058866,-480.0,0.00023345,2]
[388463819,1759179059029,-480.0,0.00023345,2]
[388463820,1759179059039,-537.81,0.00023345,2]
[388463821,1759179059048,-480.0,0.00023345,2]
[388463822,1759179059057,-480.0,0.00023345,2]
[388463823,1759179059067,-480.0,0.00023345,2]
[388463824,1759179059076,-1632.63,0.00023345,2]
[388463825,1759179059085,-511.13,0.00023345,2]
[388463826,1759179059095,-504.89,0.00023345,2]
[388463827,1759179059105,-480.0,0.00023345,2]
[388463828,1759179059114,-977.37,0.00023345,2]
[388463829,1759179059123,-529.96,0.00023345,2]
[388463830,1759179059132,-480.0,0.00023345,2]
[388463831,1759179059141,-480.0,0.00023345,2]
[388463832,1759179059151,-480.0,0.00023345,2]
[388463833,1759179059160,-480.0,0.00023345,2]
[388463834,1759179059169,-480.0,0.00023345,2]
[388463835,1759179059179,-526.13,0.00023345,2]
[388463836,1759179059188,-480.0,0.00023345,2]
[388463837,1759179059198,-480.0,0.00023345,2]
[388463838,1759179059209,-480.0,0.00023345,2]
[388463839,1759179059219,-480.0,0.00023345,2]
[388463840,1759179059228,-480.0,0.00023345,2]
[388463841,1759179059238,-480.0,0.00023345,2]
[388463842,1759179059247,-480.0,0.00023345,2]
[388463843,1759179059256,-480.0,0.00023345,2]
[388463844,1759179059265,-480.0,0.00023345,2]
[388463845,1759179059274,-480.0,0.00023345,2]
[388463846,1759179059283,-1083.22,0.00023345,2]
[388463847,1759179059292,-480.0,0.00023345,2]
[388463848,1759179059301,-1048.0,0.00023345,2]
[388463849,1759179059310,-151.0,0.00023345,7]
[388463850,1759179059319,-151.0,0.00023345,7]
[388463851,1759179059329,-151.0,0.00023345,7]
[388463852,1759179059338,-151.0,0.00023345,7]
[388463853,1759179059348,-151.0,0.00023345,7]
[388463854,1759179059358,-151.0,0.00023345,7]
[388463855,1759179059367,-480.0,0.00023345,2]
[388463856,1759179059376,-480.0,0.00023345,2]
[388463857,1759179059386,-480.0,0.00023345,2]
[388463858,1759179059395,-480.0,0.00023345,2]
[388463859,1759179059405,-1056.05,0.00023345,2]
[388463860,1759179059414,-766.76,0.00023345,2]
[388463861,1759179059424,-1966.72,0.00023345,2]
[388463862,1759179059433,-480.0,0.00023345,2]
[388463863,1759179059442,-480.0,0.00023345,2]
[388463864,1759179059452,-731.08,0.00023345,2]
[388463865,1759179059462,-151.0,0.00023345,7]
[388463866,1759179059471,-151.0,0.00023345,7]
[388463867,1759179059480,-151.0,0.00023345,7]
[388463868,1759179059489,-151.0,0.00023345,7]
[388463869,1759179059498,-151.0,0.00023345,7]
[388463870,1759179059509,-480.0,0.00023345,2]
[388463871,1759179059518,-758.97,0.00023345,2]
[388463872,1759179059527,-561.85,0.00023345,2]
[388463873,1759179059537,-480.0,0.00023345,2]
[388463874,1759179059548,-895.39,0.00023345,2]
[388463875,1759179059558,-583.63,0.00023345,2]
[388463876,1759179059567,-480.0,0.00023345,2]
[388463877,1759179059576,-480.0,0.00023345,2]
[388463878,1759179059585,-151.0,0.00023345,7]
[388463879,1759179059595,-724.49,0.00023345,2]
[388463880,1759179059604,-480.0,0.00023345,2]
[388463881,1759179059613,-480.0,0.00023345,2]
[388463882,1759179059622,-944.07,0.00023345,2]
[388463883,1759179059631,-480.0,0.00023345,2]
[388463884,1759179059640,-609.39,0.00023345,2]
[388463885,1759179059650,-480.0,0.00023345,2]
[388463886,1759179059659,-199.442798,0.00023345,7]
[388463887,1759179059669,-199.442798,0.00023345,7]
[388463888,1759179059678,-1516.48,0.00023345,2]
[388463889,1759179059687,-199.442798,0.00023345,7]
[388463890,1759179059696,-151.0,0.00023345,7]
[388463891,1759179059707,-199.442798,0.00023345,7]
[388463892,1759179059716,-151.0,0.00023345,7]
[388463893,1759179059725,-480.0,0.00023345,2]
[388463894,1759179059734,-151.0,0.00023345,7]
[388463895,1759179059743,-151.0,0.00023345,7]
[388463896,1759179059752,-157.243651,0.00023345,7]
[388463897,1759179059761,-480.0,0.00023345,2]
[388463898,1759179059770,-480.0,0.00023345,2]
[388463899,1759179059780,-609.59,0.00023345,2]
[388463900,1759179059789,-480.0,0.00023345,2]
[388463901,1759179059798,-480.0,0.00023345,2]
[388463902,1759179059807,-480.0,0.00023345,2]
[388463903,1759179059816,-480.0,0.00023345,2]
[388463904,1759179059824,-480.0,0.00023345,2]
[388463905,1759179059833,-480.0,0.00023345,2]
[388463906,1759179059842,-480.0,0.00023345,2]
[388463907,1759179059851,-480.0,0.00023345,2]
[388463908,1759179059861,-480.0,0.00023345,2]
[388463909,1759179059870,-537.09,0.00023345,2]
[388463910,1759179059879,-480.0,0.00023345,2]
[388463911,1759179059888,-480.0,0.00023345,2]
[388463912,1759179059898,-480.0,0.00023345,2]
[388463913,1759179059907,-480.0,0.00023345,2]
[388463914,1759179059917,-724.23,0.00023345,2]
[388463915,1759179059926,-480.0,0.00023345,2]
[388463916,1759179059936,-480.0,0.00023345,2]
[388463917,1759179059945,-480.0,0.00023345,2]
[388463918,1759179059955,-520.37712907,0.00023345,2]
[388463919,1759179059964,-722.74,0.00023345,2]
[388463920,1759179059973,-480.0,0.00023345,2]
[388463921,1759179059982,-599.3,0.00023345,2]
[388463922,1759179059992,-480.0,0.00023345,2]
[388463923,1759179060001,-529.03,0.00023345,2]
[388463924,1759179060010,-480.0,0.00023345,2]
[388463925,1759179060019,-480.0,0.00023345,2]
[388463926,1759179060029,-751.71,0.00023345,2]
[388463927,1759179060039,-586.65,0.00023345,2]
[388463928,1759179060049,-480.0,0.00023345,2]
[388463929,1759179060059,-1728.07,0.00023345,2]
[388463930,1759179060068,-480.0,0.00023345,2]
[388463931,1759179060077,-480.0,0.00023345,2]
[388463932,1759179060087,-480.0,0.00023345,2]
[388463933,1759179060096,-240.73817,0.00023345,7]
[388463934,1759179060105,-380.74815972,0.00023345,2]
[388463935,1759179060114,-151.0,0.00023345,7]
[388463936,1759179060123,-584.92,0.00023345,2]
[388463937,1759179060132,-151.0,0.00023345,7]
[388463938,1759179060142,-151.0,0.00023345,7]
[388463939,1759179060151,-240.73817,0.00023345,7]
[388463940,1759179060160,-240.73817,0.00023345,7]
[388463941,1759179060169,-1315.41,0.00023345,2]
[388463942,1759179060179,-480.0,0.00023345,2]
[388463943,1759179060188,-240.73817,0.00023345,7]
[388463944,1759179060197,-841.12,0.00023345,2]
[388463945,1759179060207,-151.0,0.00023345,7]
[388463946,1759179060216,-848.91,0.00023345,2]
[388463947,1759179060226,-480.0,0.00023345,2]
[388463948,1759179060235,-480.0,0.00023345,2]
[388463949,1759179060244,-151.0,0.00023345,7]
[388463950,1759179060253,-1030.93,0.00023345,2]
[388463951,1759179060263,-151.0,0.00023345,7]
[388463952,1759179060272,-480.0,0.00023345,2]
[388463953,1759179060281,-151.0,0.00023345,7]
[388463954,1759179060291,-480.0,0.00023345,2]
[388463955,1759179060300,-480.0,0.00023345,2]
[388463956,1759179060309,-916.28,0.00023345,2]
[388463957,1759179060318,-151.0,0.00023345,7]
[388463958,1759179060329,-480.0,0.00023345,2]
[388463959,1759179060338,-151.0,0.00023345,7]
[388463960,1759179060348,-582.85,0.00023345,2]
[388463961,1759179060357,-151.0,0.00023345,7]
[388463962,1759179060367,-286.679828,0.00023345,7]
[388463963,1759179060377,-286.679828,0.00023345,7]
[388463964,1759179060387,-151.0,0.00023345,7]
[388463965,1759179060398,-286.679828,0.00023345,7]
[388463966,1759179060408,-161.801225,0.00023345,7]
[388463967,1759179060417,-286.679828,0.00023345,7]
[388463968,1759179060427,-1105.71,0.00023345,2]
[388463969,1759179060436,-480.0,0.00023345,2]
[388463970,1759179060445,-480.0,0.00023345,2]
[388463971,1759179060455,-151.0,0.00023345,7]
[388463972,1759179060464,-480.0,0.00023345,2]
[388463973,1759179060473,-151.0,0.00023345,7]
[388463974,1759179060483,-1736.44,0.00023345,2]
[388463975,1759179060493,-480.0,0.00023345,2]
[388463976,1759179060506,-547.23,0.00023345,2]
[388463977,1759179060515,-480.0,0.00023345,2]
[388463978,1759179060525,-880.88,0.00023345,2]
[388463979,1759179060534,-618.12,0.00023345,2]
[388463980,1759179060545,-151.0,0.00023345,7]
[388463981,1759179060555,-151.0,0.00023345,7]
[388463982,1759179060565,-151.0,0.00023345,7]
[388463983,1759179060578,-153.732048,0.00023345,7]
[388463984,1759179060589,-151.0,0.00023345,7]
[388463985,1759179060599,-151.0,0.00023345,7]
[388463986,1759179060610,-151.0,0.00023345,7]
[388463987,1759179060620,-3798.07,0.00023345,2]
[388463988,1759179060630,-151.0,0.00023345,7]
[388463989,1759179060641,-151.0,0.00023345,7]
[388463990,1759179060653,-480.0,0.00023345,2]
[388463991,1759179060663,-151.0,0.00023345,7]
[388463992,1759179060673,-480.0,0.00023345,2]
[388463993,1759179060683,-683.99,0.00023345,2]
[388463994,1759179060693,-480.0,0.00023345,2]
[388463995,1759179060702,-151.0,0.00023345,7]
[388463996,1759179060712,-220.815655,0.00023345,7]
[388463997,1759179060721,-1505.12,0.00023345,2]
[388463998,1759179060731,-224.564691,0.00023345,7]
[388463999,1759179060740,-480.0,0.00023345,2]
[388464000,1759179060750,-1825.13,0.00023345,2]
[388464001,1759179060759,-1313.11,0.00023345,2]
[388464002,1759179060769,-922.44,0.00023345,2]
[388464003,1759179060779,-480.0,0.00023345,2]
[388464004,1759179060790,-480.0,0.00023345,2]
[388464005,1759179060800,-618.207709,0.00023345,7]
[388464006,1759179060811,-618.207709,0.00023345,7]
[388464007,1759179060820,-480.0,0.00023345,2]
[388464008,1759179060830,-618.207709,0.00023345,7]
[388464009,1759179060840,-618.207709,0.00023345,7]
[388464010,1759179060849,-3735.01,0.00023345,2]
[388464011,1759179060859,-1682.53,0.00023345,2]
[388464012,1759179060868,-747.09,0.00023345,2]
[388464013,1759179060877,-151.0,0.00023345,7]
[388464014,1759179060887,-152.036151,0.00023345,7]
[388464015,1759179060896,-151.0,0.00023345,7]
[388464016,1759179060906,-480.0,0.00023345,2]
[388464017,1759179060915,-480.0,0.00023345,2]
[388464018,1759179060925,-990.49,0.00023345,2]
[388464019,1759179060936,-480.0,0.00023345,2]
[388464020,1759179060946,-1110.75,0.00023345,2]
[388464021,1759179060955,-731.36,0.00023345,2]
[388464022,1759179060966,-571.08,0.00023345,2]
[388464023,1759179060976,-537.75,0.00023345,2]
[388464024,1759179060987,-590.24,0.00023345,2]
[388464025,1759179060996,-198.0,0.00023346,2]
[388464026,1759179061007,-500.0,0.00023346,2]
[388464027,1759179061016,-151.0,0.00023346,2]
[388464028,1759179061027,-200.54523026,0.00023346,2]
[388464029,1759179061037,-271.47095116,0.00023346,2]
[388464030,1759179061046,-480.0,0.00023346,2]
[388464031,1759179061056,-480.0,0.00023346,2]
[388464032,1759179061065,-480.0,0.00023346,2]
[388464033,1759179061075,-1500.0,0.00023368,2]
[388464034,1759179061086,-1500.0,0.00023368,2]
[388464035,1759179061095,-1626.44245559,0.00023368,2]
[388464036,1759179061105,-500.0,0.00023368,2]
[388464037,1759179061115,-1500.0,0.00023368,2]
[388464038,1759179061125,-1500.0,0.00023368,2]
[388464039,1759179061134,-1500.0,0.00023368,2]
[388464040,1759179061143,-1500.0,0.00023368,2]
[388464041,1759179061153,-1500.0,0.00023368,2]
[388464042,1759179061162,-1000.0,0.00023368,2]
[388464043,1759179061171,-1500.0,0.00023368,2]
[388464044,1759179061180,-1500.0,0.00023368,2]
[388464045,1759179061191,-1500.0,0.00023368,2]
[388464046,1759179061199,-500.0,0.00023373,2]
[388464047,1759179061209,-500.0,0.00023373,2]
[388464048,1759179061218,-500.0,0.00023373,2]
[388464049,1759179061227,-412.82600998,0.00023373,2]
[388464050,1759179061236,-500.0,0.00023373,2]
[388464051,1759179061246,-500.0,0.00023373,2]
[388464052,1759179061256,-500.0,0.00023373,2]
[388464053,1759179061265,-500.0,0.00023373,2]
[388464054,1759179061274,-500.0,0.00023373,2]
[388464055,1759179061284,-500.0,0.00023373,2]
[388464056,1759179061334,-500.0,0.00023373,2]
[388464057,1759179061346,-500.0,0.00023373,2]
[388464058,1759179061359,-500.0,0.00023373,2]
[388464059,1759179061368,-175.00939999,0.00023373,2]
[388464060,1759179061378,-509.3829313,0.00023373,2]
[388464061,1759179061387,-500.0,0.00023373,2]
[388464062,1759179061396,-500.0,0.00023373,2]
[388464063,1759179061406,-500.0,0.00023373,2]
[388464064,1759179061415,-500.0,0.00023373,2]
[388464065,1759179061425,-500.0,0.00023373,2]
[388464066,1759179061435,-509.86893301,0.00023373,2]
[388464067,1759179061444,-535.9630655,0.00023373,2]
[388464068,1759179061455,-500.0,0.00023373,2]
[388464069,1759179061465,-142274.24457072,0.00023433,2]
[388464070,1759179061475,-151.0,0.00023433,7]
[388464071,1759179061484,-151.0,0.00023433,7]
[388464072,1759179061493,-151.0,0.00023433,7]
[388464073,1759179061507,-151.0,0.00023433,7]
[388464074,1759179061516,-151.0,0.00023433,7]
[388464075,1759179061525,-151.0,0.00023433,7]
[388464076,1759179061535,-151.0,0.00023433,7]
[388464077,1759179061545,-151.0,0.00023433,7]
[388464078,1759179061555,-151.0,0.00023433,7]
[388464079,1759179061565,-151.0,0.00023433,7]
[388464080,1759179061574,-151.0,0.00023433,7]
[388464081,1759179061583,-151.0,0.00023433,7]
[388464082,1759179061593,-151.0,0.00023433,7]
[388464083,1759179061603,-151.0,0.00023433,7]
[388464084,1759179061612,-151.0,0.00023433,7]
[388464085,1759179061621,-151.0,0.00023433,7]
[388464086,1759179061630,-151.0,0.00023433,7]
[388464087,1759179061639,-151.0,0.00023433,7]
[388464088,1759179061649,-161.185824,0.00023433,7]
[388464089,1759179061658,-151.0,0.00023433,7]
[388464090,1759179061668,-151.0,0.00023433,7]
[388464091,1759179061677,-151.0,0.00023433,7]
[388464092,1759179061686,-151.0,0.00023433,7]
[388464093,1759179061695,-151.0,0.00023433,7]
[388464094,1759179061706,-151.0,0.00023433,7]
[388464095,1759179061715,-151.0,0.00023433,7]
[388464096,1759179061724,-375.346038,0.00023433,7]
[388464097,1759179061734,-375.346038,0.00023433,7]
[388464098,1759179061743,-164.207753,0.00023433,7]
[388464099,1759179061752,-375.346038,0.00023433,7]
[388464100,1759179061761,-151.0,0.00023433,7]
[388464101,1759179061770,-375.346038,0.00023433,7]
[388464102,1759179061779,-151.0,0.00023433,7]
[388464103,1759179061788,-151.0,0.00023433,7]
[388464104,1759179061798,-151.0,0.00023433,7]
[388464105,1759179061807,-151.0,0.00023433,7]
[388464106,1759179061817,-151.0,0.00023433,7]
[388464107,1759179061826,-151.0,0.00023433,7]
[388464108,1759179061835,-151.0,0.00023433,7]
[388464109,1759179061844,-151.0,0.00023433,7]
[388464110,1759179061854,-151.0,0.00023433,7]
[388464111,1759179061863,-151.0,0.00023433,7]
[388464112,1759179061871,-618.207709,0.00023433,7]
[388464113,1759179061880,-618.207709,0.00023433,7]
[388464114,1759179061889,-618.207709,0.00023433,7]
[388464115,1759179061898,-618.207709,0.00023433,7]